Cogmind - Beta 11 X7 @@@ ROGUE MODE // 2021.10.07 @ 20:45:15 Player: arctifire Result: Self-destructed Performance ------------- Evolutions (2) 1000 Regions Visited (6) 1200 Robots Destroyed (34) 170 Value Destroyed (1074) 1074 Prototype IDs (26) 520 Alien Tech Used (0) 0 Bonus (300) 300 TOTAL SCORE: 4264 Bonus ------- Aligned with FarCom 300 Cogmind --------- Core Integrity 363/550 Matter 267/300 Energy 265/265 System Corruption 4% Temperature Hot (219) Movement Rolling (130) Ox2 Location -8/Storage Parts ------- > --- POWER (1) -------- Reinforced Ion Engine > --- PROPULSION (4) --- Compact Wheel > --- UTILITY (4) ------ Large Storage Unit Signal Interpreter Light Regenerative Plating > --- WEAPON (2) ------- Advanced Beam Rifle > --- INVENTORY (15) --- Flying Fortress v7 Light Regenerative Plating Light Regenerative Plating Army-in-a-Box (30/30) AWS/Autocannon Peak State ------------ > --- POWER ------------ Light Deuterium Engine > --- PROPULSION ------- Improved VTOL Module Improved VTOL Module Improved VTOL Module Improved VTOL Module > --- UTILITY ---------- Large Storage Unit Signal Interpreter > --- WEAPON ----------- Autogun Autogun > --- INVENTORY -------- Improved Ion Engine Flying Fortress v7 Army-in-a-Box AWS/Autocannon Grenade Launcher [Rating: 36] Favorites ----------- Power Improved Ion Engine Engine Improved Ion Engine Propulsion Compact Wheel Leg Aluminum Leg Wheel Compact Wheel Flight Unit Improved VTOL Module Utility Signal Interpreter Storage Large Storage Unit Processor Signal Interpreter Protection Light Regenerative Plating Weapon Autogun Energy Gun Medium Laser Ballistic Gun Autogun Launcher Improved Grenade Launcher Build | -11 -10 -10 -10 -9 -8 -8 ------- Run | Scr Mat Min Exi Min Mat Sto Slots Evolved 4 | . . . . . 4 . Power . | . . . . . . . Propulsion 2 | . . . . . 2 . Utility 2 | . . . . . 2 . Weapon . | . . . . . . . Parts Attached 35 | . 6 5 . . 16 8 Power 5 | . 1 . . . 2 2 Engine 5 | . 1 . . . 2 2 Core . | . . . . . . . Reactor . | . . . . . . . Propulsion 14 | . . 2 . . 11 1 Treads . | . . . . . . . Leg . | . . . . . . . Wheel 10 | . . 2 . . 7 1 Hover . | . . . . . . . Flight 4 | . . . . . 4 . Utility 4 | . 1 1 . . . 2 Device . | . . . . . . . Storage 1 | . . 1 . . . . Processor 1 | . 1 . . . . . Hackware . | . . . . . . . Protection 2 | . . . . . . 2 Artifact . | . . . . . . . Weapon 12 | . 4 2 . . 3 3 Energy Gun 3 | . . . . . 1 2 Energy Cannon . | . . . . . . . Ballistic Gun 4 | . 3 1 . . . . Ballistic Cannon . | . . . . . . . Launcher 5 | . 1 1 . . 2 1 Special Weapon . | . . . . . . . Impact Weapon . | . . . . . . . Slashing Weapon . | . . . . . . . Piercing Weapon . | . . . . . . . Special Melee Weapon . | . . . . . . . Unidentified Prototypes 3 | . . . . . 1 2 Parts Lost 11 | . . . . . 3 8 Power 1 | . . . . . 1 . Propulsion 6 | . . . . . 2 4 Utility . | . . . . . . . Weapon 4 | . . . . . . 4 Highest Loss Streak 3 | . . . . . 2 3 Average Slot Usage (%) 82 | . 89 100 100 100 72 69 Engine 11 | . 14 14 14 14 9 8 Leg 4 | . 28 . . . . . Wheel 20 | . . 27 28 28 26 19 Storage 11 | . 14 14 14 14 9 9 Processor 9 | . 3 14 14 14 9 9 Protection 2 | . . . . . . 7 Energy Gun 5 | . 14 9 . . 3 4 Ballistic Gun 11 | . 12 17 28 28 9 . Launcher 5 | . 1 . . . 4 11 Naked Turns . | . . . . . . . Heaviest Build 46 | 14 17 33 33 33 36 46 Greatest Support 64 | 20 20 26 26 26 64 58 Greatest Overweight (x) 6 | . . 1 1 1 6 2 Average Overweight (x) . | . . . 1 1 . . Largest Inventory Capacity 15 | 8 8 15 15 15 15 15 Average Capacity 13 | 8 8 14 15 15 15 15 Most Carried 15 | 6 8 8 15 15 15 15 Average Carried 12 | 6 7 7 11 15 14 14 Final Capacity 15 | 8 8 15 15 15 15 15 Final Carried 15 | 6 7 8 15 15 15 15 Class Distribution -------------------- 97% | Mutant Dominant Class ---------------- Mutant | -10/Materials Mutant | -10/Mines Mutant | -10/Exiles Mutant | -9/Mines Mutant | -8/Materials Mutant | -8/Storage Resources | -11 -10 -10 -10 -9 -8 -8 ----------- Run | Scr Mat Min Exi Min Mat Sto Matter Collected 1082 | 193 57 127 . . 339 366 Remotely . | . . . . . . . Salvage Created 1102 | . 152 115 . . 502 333 Parts 66 | . 14 11 . . 21 20 Haulers Intercepted 2 | . . . . . 1 1 Recyclers Shooed 1 | . . . . . . 1 Parts Field Recycled . | . . . . . . . Retrieved Matter . | . . . . . . . Parts Self-Destructed . | . . . . . . . Prevented . | . . . . . . . Kills | -11 -10 -10 -10 -9 -8 -8 ------- Run | Scr Mat Min Exi Min Mat Sto Combat Hostiles Destroyed 26 | . 5 5 . . 7 9 Guns 16 | . 5 5 . . 3 3 AOE 10 | . . . . . 4 6 Classes Destroyed 8 | . 2 . . . 5 1 Worker 3 | . . . . . 3 . Tunneler 1 | . . . . . 1 . Hauler 2 | . . . . . 1 1 Recycler 2 | . . . . . 2 . Swarmer 7 | . 3 3 . . . 1 Grunt 14 | . 2 2 . . 6 4 Brawler 1 | . . . . . . 1 Sentry 4 | . . . . . 1 3 Best Kill Streak 6 | . 2 3 . . 6 5 Combat Bots Only 4 | . 2 3 . . 3 4 Max Kills in Single Turn 2 | . 1 1 . . 2 1 Gunslinging . | . . . . . . . Exploded 1 | . . . . . 1 1 Melee . | . . . . . . . Uniques/NPCs Destroyed . | . . . . . . . Combat | -11 -10 -10 -10 -9 -8 -8 -------- Run | Scr Mat Min Exi Min Mat Sto Damage Taken 1485 | . 282 162 . . 290 751 Core 246 | . 31 28 . . . 187 Absorbed by Shields . | . . . . . . . Core Remaining (%) 88 | 100 . . . 76 . . Volleys Fired 88 | . 24 11 . . 26 27 Largest 2 | . 2 2 . . 2 2 Hottest 86 | . 70 73 . . 86 72 Shots Fired 149 | . 48 20 . . 48 33 Gun 122 | . 48 19 . . 35 20 Cannon . | . . . . . . . Launcher 27 | . . 1 . . 13 13 Special . | . . . . . . . Kinetic 68 | . 24 17 . . 27 . Thermal 45 | . 24 2 . . . 19 Explosive 27 | . . 1 . . 13 13 Electromagnetic 9 | . . . . . 8 1 Robot Hit Streak 14 | . 8 3 . . 6 14 Robot Miss Streak 2 | . 2 2 . . 2 2 Penetration Max . | . . . . . . . Secondary Targets 2 | . . 2 . . . . Max Gunslinging Chain 1 | . . 1 . . . . Shots Hit Robots 92 | . 33 10 . . 26 23 Core Hits 61 | . 10 7 . . 25 19 Critical Kills . | . . . . . . . Critical Parts Destroyed 1 | . . . . . 1 . Critical Strikes 3 | . 1 . . . 1 1 Burn 2 | . 1 . . . . 1 Destroy 1 | . . . . . 1 . Melee Attacks . | . . . . . . . Impact . | . . . . . . . Slashing . | . . . . . . . Piercing . | . . . . . . . Sneak Attacks . | . . . . . . . Combat Hostiles . | . . . . . . . Follow-up Attacks . | . . . . . . . Damage Inflicted 2985 | . 425 290 . . 1150 1120 Guns 1221 | . 425 154 . . 348 294 Cannons . | . . . . . . . Explosions 1764 | . . 136 . . 802 826 Melee . | . . . . . . . Ramming . | . . . . . . . Kinetic 591 | . 201 130 . . 260 . Thermal 664 | . 224 160 . . . 280 Explosive 1628 | . . . . . 802 826 Electromagnetic 102 | . . . . . 88 14 Impact . | . . . . . . . Slashing . | . . . . . . . Piercing . | . . . . . . . Highest Corruption 4 | . . . . . . 4 Average Corruption 3 | . . . . . . 3 Corruption Purged . | . . . . . . . Effects 14 | . . . . . . 14 Message Errors 2 | . . . . . . 2 Matter Fused 5 | . . . . . . 5 Heat Flow Errors 3 | . . . . . . 3 Parts Rejected 1 | . . . . . . 1 Data Loss (minor) 3 | . . . . . . 3 Overload Shots . | . . . . . . . Overflow Damage 87 | . . 18 . . 20 49 Projectiles . | . . . . . . . Explosions 87 | . . 18 . . 20 49 Melee . | . . . . . . . Knockbacks . | . . . . . . . Impact . | . . . . . . . Kinetic . | . . . . . . . Secondary . | . . . . . . . Self-Inflicted Damage 139 | . . . . . 4 135 Shots 8 | . . . . . 1 7 Rammed . | . . . . . . . Targets Rammed . | . . . . . . . Kicked . | . . . . . . . Crushed . | . . . . . . . Highest Temperature 266 | . 126 71 . . 81 266 Average Temperature 52 | . 45 36 . . 26 73 Received Heat Transfer 558 | . 108 72 . . 144 234 Siege Activations . | . . . . . . . Robots Corrupted . | . . . . . . . Combat Hostiles . | . . . . . . . Parts Fried . | . . . . . . . Impact Corruptions . | . . . . . . . Robots Melted . | . . . . . . . Combat Hostiles . | . . . . . . . Parts Melted 4 | . . . . . . 4 Heat Transferred 1656 | . 740 324 . . . 592 Parts Sabotaged . | . . . . . . . Parts Stolen . | . . . . . . . Parts Stripped . | . . . . . . . Power Chain Reactions . | . . . . . . . Missiles Intercepted . | . . . . . . . Alert | -11 -10 -10 -10 -9 -8 -8 ------- Run | Scr Mat Min Exi Min Mat Sto Peak Influence 309 | . 225 309 . . 160 209 Initial 67 | . . 9 . . . 67 Average 69 | . 74 92 . . 46 82 Maximum Alert Level 1 | . 1 1 . . . 1 Low Security (%) 92 | 100 96 78 . 100 100 91 Level 1 7 | . 3 21 . . . 8 Level 2 . | . . . . . . . Level 3 . | . . . . . . . Level 4 . | . . . . . . . Level 5 . | . . . . . . . High Security . | . . . . . . . Max Security . | . . . . . . . Squads Dispatched 6 | . 2 . . . 3 1 Investigation 1 | . 1 . . . . . Extermination . | . . . . . . . Reinforcement 4 | . 1 . . . 3 . Assault 1 | . . . . . . 1 Garrison . | . . . . . . . Intercept . | . . . . . . . Construction Impeded 1 | . . . . . 1 . Haulers Reinforced . | . . . . . . . Active Scanning Responses . | . . . . . . . Cargo Convoy Interrupts . | . . . . . . . Stealth | -11 -10 -10 -10 -9 -8 -8 --------- Run | Scr Mat Min Exi Min Mat Sto Distress Signals 4 | . 1 1 . . . 2 Communications Jammed . | . . . . . . . Distress Signals . | . . . . . . . Times Spotted 44 | . 14 4 . . 10 16 Peak Tracking Total 6 | . 6 3 . . 3 4 Tactical Retreats 6 | . 3 . . . 2 1 Traps | -11 -10 -10 -10 -9 -8 -8 ------- Run | Scr Mat Min Exi Min Mat Sto Traps Triggered 4 | . 1 . . . . 3 Indirectly . | . . . . . . . Trap Hack Attempts . | . . . . . . . Triggered . | . . . . . . . Disarmed . | . . . . . . . Reprogrammed . | . . . . . . . Reused . | . . . . . . . Traps Extracted . | . . . . . . . Installed . | . . . . . . . Triggered . | . . . . . . . Machines | -11 -10 -10 -10 -9 -8 -8 ---------- Run | Scr Mat Min Exi Min Mat Sto Machines Disabled 13 | . . 12 . . . 1 Max in Single Turn 12 | . . 12 . . . 1 Garrison Access 1 | . . . . . . 1 Machines Sabotaged . | . . . . . . . Garrisons Compromised . | . . . . . . . Overloaded Fab Kills . | . . . . . . . Fab Network Shutdowns . | . . . . . . . Hacking | -11 -10 -10 -10 -9 -8 -8 --------- Run | Scr Mat Min Exi Min Mat Sto Machines Accessed 7 | . . . 1 1 1 4 Terminals 4 | . . . . . 1 3 Fabricators . | . . . . . . . Repair Stations 1 | . . . . . . 1 Recycling Units . | . . . . . . . Scanalyzers . | . . . . . . . Garrison Access . | . . . . . . . Total Hacks 11 | . . . 1 1 2 7 Successful 4 | . . . 1 1 . 2 Failed 7 | . . . . . 2 5 Catastrophic 1 | . . . . . 1 . Database Lockouts . | . . . . . . . Manual 5 | . . . 1 . 2 2 Terminals 7 | . . . . . 2 5 Fabricators . | . . . . . . . Repair Stations 2 | . . . . . . 2 Recycling Units . | . . . . . . . Scanalyzers . | . . . . . . . Garrison Access . | . . . . . . . Terminal Hacks 3 | . . . 1 1 . 1 Open Door 2 | . . . . 1 . 1 EX-Prototype ID Bank 1 | . . . 1 . . . Fabricator Hacks . | . . . . . . . Repair Station Hacks 1 | . . . . . . 1 Refit 1 | . . . . . . 1 Recycling Unit Hacks . | . . . . . . . Scanalyzer . | . . . . . . . Garrison Access Hacks . | . . . . . . . Unauthorized Hacks . | . . . . . . . Terminals . | . . . . . . . Fabricators . | . . . . . . . Repair Stations . | . . . . . . . Recycling Units . | . . . . . . . Scanalyzers . | . . . . . . . Garrison Access . | . . . . . . . Data Cores Recovered . | . . . . . . . Used . | . . . . . . . Hacking Detections 3 | . . . . . 1 2 Full Trace Events . | . . . . . . . Feedback Events . | . . . . . . . Feedback Blocked . | . . . . . . . Robot Schematics Acquired . | . . . . . . . Robots Built . | . . . . . . . Matter . | . . . . . . . Time . | . . . . . . . Total Robot Build Rating . | . . . . . . . Part Schematics Acquired . | . . . . . . . Parts Built . | . . . . . . . Matter . | . . . . . . . Time . | . . . . . . . Total Part Build Rating . | . . . . . . . Parts Repaired . | . . . . . . . Time . | . . . . . . . Parts Recycled . | . . . . . . . Recycled Matter . | . . . . . . . Retrieved Matter . | . . . . . . . Retrieved Components . | . . . . . . . Parts Scanalyzed . | . . . . . . . Part Schematics Acquired . | . . . . . . . Parts Damaged . | . . . . . . . Bothacking | -11 -10 -10 -10 -9 -8 -8 ------------ Run | Scr Mat Min Exi Min Mat Sto Used RIF Installer . | . . . . . . . Robots Hacked . | . . . . . . . Non-combat . | . . . . . . . Combat . | . . . . . . . Robot Hacks Applied . | . . . . . . . Relay Couplers Released . | . . . . . . . Robots Rewired . | . . . . . . . Allies Hacked . | . . . . . . . Hacks Repelled . | . . . . . . . Allies | -11 -10 -10 -10 -9 -8 -8 -------- Run | Scr Mat Min Exi Min Mat Sto Total Allies . | . . . . . . . Largest Group . | . . . . . . . Highest-Rated Group . | . . . . . . . Highest-Rated Ally . | . . . . . . . Total Orders . | . . . . . . . Ally Attacks . | . . . . . . . Total Damage . | . . . . . . . Kills . | . . . . . . . Allies Corrupted . | . . . . . . . Allies Melted . | . . . . . . . Intel | -11 -10 -10 -10 -9 -8 -8 ------- Run | Scr Mat Min Exi Min Mat Sto Robot Analysis Total . | . . . . . . . Derelict Logs Recovered . | . . . . . . . Drone Launches . | . . . . . . . Drone Recoveries . | . . . . . . . Exploration | -11 -10 -10 -10 -9 -8 -8 ------------- Run | Scr Mat Min Exi Min Mat Sto Turns Passed 2883 | 2 460 428 298 138 663 894 Spaces Moved 1916 | 2 296 367 279 132 388 452 Core . | . . . . . . . Treads . | . . . . . . . Legs 308 | 2 296 10 . . . . Wheels 1602 | . . 357 279 132 382 452 Hover . | . . . . . . . Flight 6 | . . . . . 6 . Fastest Speed 93 | 120 120 105 105 105 93 95 Average Speed 107 | 120 120 105 105 105 101 108 Slowest Speed 465 | 120 120 120 105 105 465 130 Overloaded Moves . | . . . . . . . Propulsion Burnouts . | . . . . . . . Robots Hopped . | . . . . . . . Cave-ins Triggered . | . . . . . . . Exploration Rate (%) 38 | 2 48 62 62 32 22 43 Regions Visited 6 Branch Regions 4 Pre-discovered Areas 1 | . . 1 . . . . Known Exits Taken 5 | . 1 1 1 1 1 . Unknown Exits Taken 1 | 1 . . . . . . Scrap Searched 1 | . . 1 . . . . Spaces Dug 13 | . . . . . . 13 Terrain Destroyed 221 | . . 46 . . 93 82 Melee . | . . . . . . . Projectile . | . . . . . . . AOE 221 | . . 46 . . 93 82 Terrain Rammed . | . . . . . . . Walls Destroyed . | . . . . . . . Machines Disabled . | . . . . . . . Actions | -11 -10 -10 -10 -9 -8 -8 --------- Run | Scr Mat Min Exi Min Mat Sto Total 2594 | 1 355 389 287 131 611 820 Wait 523 | . 19 7 . . 169 328 Move 1910 | 1 295 366 278 131 387 452 Hop . | . . . . . . . Pick Up 12 | . 5 . 3 . 2 2 Fast Attach 16 | . . . . . 12 4 Attach 4 | . 1 . . . 1 2 Detach . | . . . . . . . Swap 15 | . 5 5 . . 3 2 Drop 26 | . 6 . 6 . 11 3 Fire 88 | . 24 11 . . 26 27 Melee . | . . . . . . . Ram . | . . . . . . . Kick . | . . . . . . . Crush . | . . . . . . . Escape Stasis . | . . . . . . . Rewire . | . . . . . . . Trap . | . . . . . . . Miscellaneous . | . . . . . . . Route ------- -11/Scrapyard -10/Materials (discovered 2 exits: *Mat / *Min) -10/Mines (discovered 2 exits: *Mat / *Exi) -10/Exiles -9/Mines -8/Materials -8/Storage History --------- Turn | Location | Event 1 | -11/Scrapyard | Discovered new exit (range 1) 3 | -11/Scrapyard | Entered Materials 308 | -10/Materials | Build established: Mutant 331 | -10/Materials | Discovered new exit (range 3) 337 | -10/Materials | Identified exit to Materials 419 | -10/Materials | Discovered new exit (range 16) 461 | -10/Materials | Identified exit to Mines 463 | -10/Materials | Entered Mines 468 | -10/Mines | Discovered exit to Materials (range 8) 835 | -10/Mines | Learned location of Storage (-8) 884 | -10/Mines | Deemed a non-threat by the Exiles lab entrance 885 | -10/Mines | Discovered new exit (range 5) 889 | -10/Mines | Identified exit to Exiles 891 | -10/Mines | Entered Exiles 917 | -10/Exiles | Met 8R-AWN 939 | -10/Exiles | Met EX-HEX 974 | -10/Exiles | Met EX-BIN 994 | -10/Exiles | Aligned with FarCom system 995 | -10/Exiles | Given EX-Vault access code 1027 | -10/Exiles | Opened EX-Vault 1036 | -10/Exiles | Found Flying Fortress v7 1050 | -10/Exiles | Found Army-in-a-Box 1059 | -10/Exiles | Found AWS/Autocannon 1084 | -10/Exiles | Warned to stay clear of 0b10 Research branches 1124 | -10/Exiles | Met EX-DEC 1176 | -10/Exiles | Discovered new exit (range 14) 1188 | -10/Exiles | Identified exit to Mines 1189 | -10/Exiles | Stole three prototypes: Flying Fortress v7, Army-in-a-Box, AWS/Autocannon 1189 | -10/Exiles | Entered Mines 1190 | -9/Mines | Met a Derelict bent on vengeance 1195 | -9/Mines | Found the Drone Emporium 1324 | -9/Mines | Discovered new exit (range 3) 1326 | -9/Mines | Identified exit to Materials 1327 | -9/Mines | Entered Materials 1327 | -8/Materials | Evolved 4 slots: Propulsion x2, Utility x2 1945 | -8/Materials | Discovered new exit (range 15) 1981 | -8/Materials | Identified exit to Storage 1990 | -8/Materials | Entered Storage 2130 | -8/Storage | Lost 3 parts (2n1w) 2242 | -8/Storage | Found Prototype Protection 2242 | -8/Storage | Identified Lgt. Regenerative Plating 2251 | -8/Storage | Found Corrupted Lgt. Regenerative Plating 2253 | -8/Storage | Found Corrupted Lgt. Regenerative Plating 2884 | -8/Storage | Self-destructed Last Messages --------------- 02775_ U-05 Engineer lays Concrete. 02778_ W-25 Informer sends out distress signal. 02789_ R-06 Scavenger inserts Beam Rifle into recycling unit. 02802_ U-05 Engineer builds a Door. 02820_ System corrupted: Matter fused (-9). 02834_ T-07 Excavator is excavating. 02840_ System corrupted: Heat flow error (+165). 02842_ T-07 Excavator is excavating. 02868_ U-05 Engineer lays Concrete. 02868_ Y-45 Defender suffers critical hit (Burn). 02869_ U-05 Engineer lays Concrete. 02874_ Beam Rifle melted. 02874_ Heat Sink melted. 02874_ Imp. Ion Engine melted. 02874_ Y-45 Defender destroyed. 02876_ Acquired 56 matter. 02877_ U-05 Engineer builds a Wall. 02881_ U-05 Engineer lays Concrete. 02882_ Com. Wheel destroyed. 02883_ U-05 Engineer builds a Wall. Map ----- +----------------------------------------------------+ | ???# #####???????????????##### | | ???# #???????????????????# ! | | ???# #?????????? ???????# | | ???# #?????????# ??????# | | ???# ?????????+ ??????# | | ???# ?????????# ?????# | | ???# ?????????? ?????# | | ???# ##+########? ????# = | | ???# # #?? ????# | | ???# # #+###+######### | | ???# # # | | ???#w# + | | ???# # # | | ???# + # | | ???# # # | | ???# # / | | ???# #####+##########+######## | | ???# #???# #????# ### | | ???# ##### ###### ## | | ???# + ### | | ???# ############ #?# | | ???# #??????????###########?#! | | ???# #??????????? ?????????# | | ???#Y#?????????""" ?????????## | | ???#Y######## """" ??????????? | | ???#k@ bg/ """" ??????????? | | ???# ######## """" ??????????? | | ??u ????????g ?????????? | | ? ##??????????? #???????? | | ####??????????????? #???????? | | ?????????????????????#???????? | | ?????????????????????????????? | | ?????????????????????????????? | | ?????????????????????????????? | | ?????????????????????????????? | | ?????????????????????????????? | | ?????????????????????????????? | | ?????????????????????????????? | | ?????????????????????????????? | | ?????????????????????????????? | | ?????????????????????????????? | | ?????????????????????????????? | | ?????????????????????????????? | | ?????????????????????????????? | | ?????????????????????????????? | | ?????????????????????????????? | | ?????????????????????????????? | | ?????????????????????????????? | | ?????????????????????????????? | | ?????????????????????????????? | +----------------------------------------------------+ Best States ------------- Heat Dissipation 31 Energy Generation 14 Energy Capacity 265 Matter Stores 300 Matter Capacity 300 Sight Range 16 Terrain Scan Density 10 Armor Coverage 150 Evasion (%) 55 Item Schematics ----------------- None Robot Schematics ------------------ None Fabricated ------------ Nothing Alien Tech Used ----------------- None Achievements -------------- None Challenges ------------ None Game ------ Seed WeightDamperFlamer Manual? 0 Play Time 00:24:26 Cumulative 31.2 hours Start 2021.10.07 @ 19:07:52 End 2021.10.07 @ 20:45:15 Sessions 1 Manual Loads 0 Difficulty Rogue Special Mode None Game No. 37 Rogue 6 Adventurer 25 Explorer 6 Win Type - Total 0 Types 0/0/0/0/0/0/0/0/0 Lore% 21 Gallery% 44 Achievement% 55 Wizard Run 0 Options --------- ASCII 0 Keyboard 0 Movement Arrows Keybinds 0 Fullscreen 1 Font 18/SmallcapsGlow Map View 76x50 Tactical HUD 1 Map Filters NONE Filters NONE Steam 1 RUN: 35ae19c5-f64c-46ab-b9d7-9a45858411da